{"text_format":"3","workbook":"xlsx","n_sheets":2,"sheets":["人才岗位简介表","集团本部 (2)"],"read":"whole","date_system":"1900"}

{"sheet":"人才岗位简介表","index":0,"n_rows":14,"n_cols":12,"rows_kept":14,"merged":[[0,0,0,1],[1,0,1,11],[2,0,3,0],[2,1,3,1],[2,2,3,2],[2,3,2,6],[2,7,2,10],[2,11,3,11],[4,1,9,1],[4,2,7,2],[10,1,13,1],[12,2,13,2]]}
["附件1："]
["2025年度无锡山水城市发展集团有限公司人才岗位简介表"]
["序号","集团名称","招聘单位","招聘岗位",{"$nulls":3},"招聘条件",{"$nulls":3},"招聘对象"]
[{"$nulls":3},"岗位类别","招聘\n部门","招聘\n岗位\n名称","招聘\n人数","学历\n要求","专业\n要求","工作年限\n要求","其他条件"]
[1,"无锡山水城市发展集团有限公司","山水建设无锡有限公司","专业岗","工程管理部","土建工程师",1,"本科及以上","建筑工程类","5年及以上相关工作经验","1.年龄45周岁以下；\n2.具有良好的建筑工程管理专业技术知识，熟悉工程建设法律、法规、政策，熟悉工程施工流程和施工管理要点；\n3.具有中级及以上职称，持有一级建造师执业资格证书；\n4.中共党员优先；\n5.具有高级职称优先。","社会人员"]
[2,null,null,"专业岗","工程管理部","市政工程师",1,"本科及以上","建筑工程类","5年及以上相关工作经验","1.年龄45周岁以下；\n2.具有良好的市政工程管理专业技术知识，熟悉工程建设法律、法规、政策，熟悉工程施工流程和施工管理要点；\n3.具有中级及以上职称，持有一级建造师执业资格证书；\n4.中共党员优先；\n5.具有高级职称优先。","社会人员"]
[3,null,null,"专业岗","工程管理部","造价工程师",1,"本科及以上","工程造价、工程管理","3年以上独立编制预算经验","1.年龄35周岁以下；\n2.能独立完成项目投资估算、预算编制、结算审核及成本控制；\n3.熟练运用造价软件（如广联达、新点等），依据定额规范编制工程量清单；跟踪项目动态成本，分析偏差并提出优化建议；参与招投标工作，审核合同条款中的造价相关条款；对接设计、施工团队，确保预算与设计方案匹配；\n4.持有二级造价师证书、中级工程师职称；\n5.熟悉地方定额及行业政策；精通造价软件及办公自动化工具，数据分析能力强。","社会人员"]
[4,null,null,"专业岗","地产开发部","房地产营销策划经理",1,"本科及以上","不限","具有8年及以上房地产相关行业从业经验，3年及以上房企经验，2个及以上全周期项目操盘经验","1.年龄45周岁以下；\n2.熟悉市场营销，产品定位策划和房地产专业知识；\n3.熟练使用相关营销软件，具有合作项目操盘及对接经验；\n4.熟悉营销招采制度；\n5.具有业内媒体宣推经验及相关资源优先。","社会人员"]
[5,null,"无锡市仙河建设工程有限公司","专业岗","工程管理部","工程安装项目负责人",1,"大专及以上","建筑工程、土木工程、工程管理、给排水工程","8年及以上建筑施工现场管理工作经验或3年及以上房地产安装专业管理工作相关经验","1.年龄45周岁以下；\n2.具备相关专业建筑施工知识和处理建筑施工中的安全问题能力，具备相关工程项目管理经验和独立负责项目管理的能力；\n3.具有建筑二级建造师注册证书或安装相关专业证书。","社会人员"]
[6,null,"无锡太湖创意产业投资发展有限公司","管理岗","招商服务部","产业项目招商专员",1,"本科及以上","公共管理类、工商管理类、环境保护类","有相关工作经验者优先","1.年龄35周岁以下；\n2.熟练掌握各类办公自动化软件；\n3.能够适应市场的变化和客户的需求，并快速掌握新的招商模式和方法，清晰、准确地向客户介绍公司的招商项目，解答客户的疑问；\n4.具备风险意识和风险评估能力，能够识别资产管理过程中的潜在风险，确保国有资产的安全和稳定增值；","不限"]
[7,"无锡山水城市发展集团有限公司","无锡山水城市服务有限公司","管理岗","运营管理部","物业工程运维主管",1,"本科及以上","不限","具有物业行业企业工作经历，从事工程管理工作3年以上","1.年龄40周岁以下；\n2.如有中级注册安全工程师、一级注册消防工程师、中级电工证(四级)、特种设备安全管理员、高压电工作业、焊接与热切割作业、制冷与空调作业等证件的专业性较强的优先；\n3.熟悉任职岗位及下属岗位的各项业务及运作流程；\n4.熟悉大、中型住宅的水电、消防、智能化、安防系统及设备的维修、维护及管理等；\n5.负责公司工程项目及零星维修事务的统筹、核准、监督、审计、结算等事务的落实。","社会人员"]
[8,null,"无锡大浮环卫保洁有限公司","管理岗","综合管理部","人力资源管理专员",1,"本科及以上","公共管理类、工商管理类","3年及以上相关工作经验","1.年龄35周岁以下；\n2.要求具备扎实的人力资源管理知识，包括招聘、培训、绩效等模块；\n3.熟悉劳动法律法规，能依法依规处理劳资关系；\n4.有良好的数据处理和分析能力，熟练使用各种办公软件软件；\n5.能够根据公司战略目标独立开展人事部各项工作；\n6.中共党员优先。","社会人员"]
[9,null,"无锡山水慧谷旅游发展有限公司","管理岗","综合管理部","行政综合管理专员",1,"本科及以上","行政管理、工商管理、旅游管理","有相关工作经验者优先","1.年龄35周岁以下；\n2.熟悉日常行政事务，具备基础公文写作能力、良好的会议组织和协调接待能力；\n3.能对接政府、企业、内部部门等各方需求；\n4.参与制定公司各项行政管理制度，确保公司行政管理工作的规范化、标准化，监督各部门行政合规性。","不限"]
[10,null,null,"管理岗","文旅运营部","文旅运营管理专员",1,"本科及以上","旅游管理、工商管理、市场营销、会计学、公共管理","有相关工作经验者优先","1.年龄35周岁以下；\n2.熟练使用Office办公软件，并熟练操作票务系统或智慧景区管理平台；\n3.熟悉景区运营流程，如票务管理、游客服务、景区标准化管理、游客动线设计、容量管理，掌握游客服务标准、投诉处理流程及应急预案。","不限"]

{"sheet":"集团本部 (2)","index":1,"n_rows":23,"n_cols":10,"rows_kept":23,"hidden":true,"merged":[[0,0,0,9],[2,1,5,1],[6,1,9,1],[10,1,12,1],[13,1,15,1],[16,1,18,1]]}
["无锡山水城市发展集团有限公司"]
["序号","部门","岗位","职级","编制","在岗人数","缺岗人数","现有人员情况","招聘人数","招聘理由及拟招聘时间"]
[1,"综合管理部\n（8人）","部长","部长",1,0,{"$f":"E3-F3","v":1}]
[2,null,"副部长","副部长",1,0,{"$f":"E4-F4","v":1},"杨杰（拟调任）"]
[3,null,"副部长","副部长",1,0,1,"许晟勋（拟提任）"]
[4,null,"工作人员",null,5,6,-1,"许晟勋、冯菲菲、顾志丹、张千慧、严海涛、陈虹羽"]
[5,"财务融资部\n（8人）","部长","部长",1,1,0,"陆雅艳"]
[6,null,"副部长","副部长",1,0,1,"姜锋（拟提任）"]
[7,null,"副部长","副部长",1,0,1]
[8,null,"工作人员",null,5,4,1,"姜锋、肖菊、冯颖、顾凯豪"]
[9,"规划发展部\n（6人）","部长","部长",1,0,1,"隋志坤（拟提任）"]
[10,null,"副部长","副部长",1,1,0,"隋志坤"]
[11,null,"工作人员",null,4,3,1,"周嘉辉、张燕兰、陆海东"]
[12,"党群人事部\n（4人）","部长","部长",1,1,0,"杨承宗"]
[13,null,"副部长","副部长",1,0,1]
[14,null,"工作人员",null,2,2,0,"祁婷婷、徐恬"]
[15,"纪检工作室\n（4人）","主任","主任",1,0,1]
[16,null,"副主任","副主任",1,0,1,"卢佳妍（拟提任）"]
[17,null,"工作人员",null,2,1,1,"卢佳妍"]
[null,"总人数",null,null,{"$f":"SUM(E3:E19)","v":30},{"$f":"SUM(F3:F19)","v":19},{"$f":"SUM(G3:G16)","v":8},null,{"$f":"SUM(I3:I16)","v":0}]
[]
[]
[null,null,"超编情况",{"$f":"E20-F20-I20","v":11}]